[Event "Summer Prague Open-A 2024"]
[Site "Prague"]
[Date "2024.08.05"]
[Round "5.9"]
[White "Bohatyrov, Mykola"]
[Black "Camarena Jimenez, Rufino"]
[Result "0-1"]
[Annotator "TA"]
[ECO "C00"]
[WhiteElo "1847"]
[BlackElo "2279"]
[PlyCount "76"]
[EventDate "2024.08.02"]
[EventType "swiss"]
[EventCountry "CZE"]
[SourceTitle "playchess.com"]
[Source "ChessBase"]
[SourceQuality "1"]
[TimeControl "40/5400+30:1800+30"]

{[%evp 11,76,0,1,6,21,18,22,6,6,15,11,-6,-2,0,-8,-25,-25,-37,-14,-17,0,0,7,12,9,9,17,12,0,-9,-19,-15,-8,-4,545,0,0,0,6,-16,10,0,-8,-23,-10,-41,-39,-30,-34,-52,-54,-64,-65,-100,-92,-122,-122,-139,-128,-150,-151,-625,-625,-603,-589,-29980,-29981]} 1. e4 {[%emt 0:00:05]} e6 {[%emt 0:04:05]} 2. Nf3 {[%emt 0:00:05]} d5 {[%emt 0:00:18]} 3. e5 {[%emt 0:00:10]} Ne7 {[%emt 0:02:06]} 4. d4 {[%emt 0:01:58]} c5 {[%emt 0:00:47]} 5. c3 {[%emt 0:01:10]} Nbc6 {[%emt 0:01:41]} 6. Bd3 {[%emt 0:05:04]} Bd7 {[%emt 0:07:09]} 7. O-O {[%emt 0:00:23]} Ng6 {[%emt 0:00:15]} 8. Be3 {[%emt 0:08:53]} Qb6 {[%emt 0:14:36]} 9. Qe2 {[%emt 0:13:11] The position is equal.} cxd4 {[%emt 0:03:44]} 10. cxd4 {[%emt 0:00:56]} Nb4 {[%emt 0:00:16] And now ...Nxd3 would win.} 11. Nc3 {[%emt 0:01:06]} Nxd3 {[%emt 0:00:25]} 12. Qxd3 {[%emt 0:00:05]} h6 {[%emt 0:09:25]} 13. Rab1 {[%emt 0:07:29]} Be7 {[%emt 0:02:02]} 14. Nd2 {[%emt 0:02:41]} Rc8 {[%emt 0:02:47]} 15. f4 {[%emt 0:01:08]} Nh4 {[%emt 0:01:59]} 16. Bf2 {[%emt 0:04:43]} h5 {[%emt 0:06:49]} 17. Bxh4 {[%emt 0:02:03]} Bxh4 {[%emt 0:00:47] [#]} 18. f5 $1 {[%emt 0:07:47]} exf5 {[%emt 0:13:34]} 19. Nxd5 {[%emt 0:04:39]} Qb5 {[%emt 0:00:39]} 20. Qxb5 {[%emt 0:07:02]} Bxb5 {[%emt 0:00:03]} 21. Rfc1 {[%emt 0:01:32]} ({Much worse is} 21. Rxf5 Bd3 22. Rff1 Bxf1 23. Kxf1 Bg5 $17) 21... Kd7 {[%emt 0:04:47]} 22. Nf3 {[%emt 0:01:57] Excellent horsemanship.} Bd8 {[%emt 0:03:59][%mdl 8192]} (22... Bc6 $11 {and Black is okay.}) 23. Rxc8 $2 {[%emt 0:00:55]} ({White has to play} 23. e6+ $1 $18 fxe6 24. Ne5+ Kd6 25. Rxc8) 23... Kxc8 $11 {[%emt 0:00:10]} 24. Nc3 {[%emt 0:03:06]} Bd7 {[%emt 0:00:25]} 25. d5 {[%emt 0:00:56]} Bb6+ {[%emt 0:02:20]} 26. Kh1 {[%emt 0:00:24]} h4 {[%emt 0:02:58]} 27. Ng5 {[%emt 0:00:55]} Be8 {[%emt 0:00:48]} 28. Rc1 {[%emt 0:04:13]} Be3 {[%emt 0:01:39]} 29. Rc2 {[%emt 0:00:05] Threatens to win with Nd1+.} Kd8 {[%emt 0:00:51]} 30. Nf3 {[%emt 0:01:04]} h3 {[%emt 0:01:00]} 31. Re2 {[%emt 0:01:03]} Bb6 {[%emt 0:02:37]} 32. Ng5 {[%emt 0:12:47]} hxg2+ {[%emt 0:00:43]} 33. Rxg2 {[%emt 0:01:32]} g6 {[%emt 0:01:04]} 34. Re2 {[%emt 0:05:22][%cal Oc3a4] [#]} Rh5 $1 {[%emt 0:02:06]} 35. Rg2 {[%emt 0:00:46]} Be3 {[%emt 0:00:55]} 36. Nxf7+ {[%emt 0:00:41]} (36. Nf3 $17) 36... Bxf7 $19 {[%emt 0:00:23]} 37. e6 {[%emt 0:00:04]} Be8 {[%emt 0:00:54]} 38. d6 {[%emt 0:00:33]} Bc6 {[%emt 0:00:43] Never resign too early!   Weighted Error Value: White=0.61/Black=0.26 (precise) .  Loses game:     	White=1     	Black=1      Missed win:     	White=1     	---        Inaccurate:     	White=3     	Black=1      OK:         	White=8     	Black=14     Best:        	---       	Black=3} 0-1

[Event "Summer Prague Open-A 2024"]
[Site "Prague"]
[Date "2024.08.05"]
[Round "5.10"]
[White "Eret, Matous"]
[Black "Kuhn, Ulf"]
[Result "1/2-1/2"]
[Annotator "TA"]
[ECO "A00"]
[WhiteElo "2316"]
[BlackElo "2082"]
[PlyCount "129"]
[EventDate "2024.08.02"]
[EventType "swiss"]
[EventCountry "CZE"]
[SourceTitle "playchess.com"]
[Source "ChessBase"]
[SourceQuality "1"]
[TimeControl "40/5400+30:1800+30"]

{[%evp 46,129,124,142,157,176,166,130,199,179,233,222,254,241,262,265,308,237,332,165,204,198,199,0,30,57,165,173,175,167,166,165,174,174,156,54,51,39,42,0,0,0,0,-47,8,0,0,0,0,0,0,0,0,0,0,0,15,15,35,35,35,25,35,35,35,34,35,35,35,8,8,8,35,35,35,35,35,35,35,35,35,35,35,35,35,35]} 1. a3 {[%emt 0:00:03]} c5 {[%emt 0:03:40]} 2. Nf3 {[%emt 0:01:01]} Nc6 {[%emt 0:00:32]} 3. c4 {[%emt 0:01:28]} g6 {[%emt 0:01:39]} 4. g3 {[%emt 0:02:31]} Bg7 {[%emt 0:00:28]} 5. Bg2 {[%emt 0:00:09]} e5 {[%emt 0:03:46]} 6. Nc3 {[%emt 0:01:09]} Nge7 {[%emt 0:03:31]} 7. d3 {[%emt 0:01:10]} O-O {[%emt 0:00:42]} 8. Bd2 {[%emt 0:01:42]} d6 {[%emt 0:04:48]} 9. Rb1 {[%emt 0:01:46]} h6 {[%emt 0:11:21]} 10. b4 {[%emt 0:01:51]} Rb8 {[%emt 0:01:23]} 11. O-O {[%emt 0:11:02]} Be6 {[%emt 0:00:05]} 12. Ne1 {[%emt 0:01:20]} cxb4 {[%emt 0:12:04]} 13. axb4 {[%emt 0:00:29]} d5 {[%emt 0:00:13]} 14. b5 {[%emt 0:02:22]} d4 {[%emt 0:05:46]} 15. Ne4 {[%emt 0:01:18]} Na5 {[%emt 0:00:22]} 16. Nc5 {[%emt 0:01:43]} Bc8 {[%emt 0:00:20]} 17. Qa4 {[%emt 0:01:04]} b6 {[%emt 0:01:35]} 18. Bxa5 {[%emt 0:02:28]} bxa5 {[%emt 0:00:41]} 19. Nb3 {[%emt 0:00:08]} a6 {[%emt 0:00:43]} 20. bxa6 {[%emt 0:10:04]} Bxa6 {[%emt 0:07:35]} 21. Nc2 {[%emt 0:01:56]} Bb7 {[%emt 0:00:58]} 22. Qxa5 {[%emt 0:02:38]} Qc8 {[%emt 0:02:55]} 23. Bxb7 {[%emt 0:06:34]} Qxb7 {[%emt 0:01:33]} 24. Nd2 {[%emt 0:01:05]} Qd7 {[%emt 0:01:28]} 25. Rxb8 {[%emt 0:02:37]} Rxb8 {[%emt 0:00:04]} 26. Rb1 {[%emt 0:00:03]} Rc8 {[%emt 0:06:14]} (26... Rxb1+ $16 27. Nxb1 Qg4) 27. Ne4 $18 {[%emt 0:06:41]} f5 {[%emt 0:05:05]} (27... Nc6 {was worth a try.} 28. Qa6 Nb8) 28. Nc5 $18 {[%emt 0:00:16]} Qc6 {[%emt 0:04:09]} 29. Na6 {[%emt 0:02:07]} e4 {[%emt 0:03:00]} 30. Rb6 {[%emt 0:01:20]} Qa8 {[%emt 0:01:28]} 31. Ncb4 {[%emt 0:03:01]} exd3 {[%emt 0:01:35]} (31... f4 $142 32. Re6 (32. gxf4 exd3 33. Nxd3 Qe4 $18) 32... exd3 33. Nxd3 (33. Rxe7 d2 $17) 33... Rc6 34. Rxe7 (34. Nxf4 Rxc4 35. Nd3 Rc6 $18) 34... Rxa6 35. Re8+ (35. Qd5+ Qxd5 36. cxd5 fxg3 $18) 35... Qxe8 36. Qxa6 g5) 32. exd3 {[%emt 0:01:41]} (32. Nxd3 $142 {Hoping for Qb5.} Bf8 33. c5) 32... f4 {[%emt 0:00:53]} 33. Re6 {[%emt 0:02:06]} (33. gxf4 Qf3 34. h3 Qxh3 $11) 33... Qf3 {[%emt 0:05:35] [#]} 34. Qa1 $2 {[%emt 0:03:43]} (34. Rxe7 Qd1+ 35. Kg2 f3+ 36. Kh3 Qf1+ 37. Kh4 (37. Kg4 $2 h5+ 38. Kh4 Bf6+ $19) 37... Bf6+ 38. Kg4 h5+ (38... Bxe7 39. Qd5+ Kg7 40. Qxd4+ Kh7 41. Nd5 $17) 39. Kxf3 Bxe7 40. Qd5+ Kg7 41. Qxd4+ Kh6 42. Qf4+ g5 $19) (34. Re1 $1 $18) 34... Nf5 {[%emt 0:04:01]} (34... fxg3 $5 35. hxg3 (35. Rxe7 $2 Qxf2+ 36. Kh1 Qxh2#) 35... Nf5 $11) 35. Qf1 {[%emt 0:03:36]} (35. Rxg6 Kh7 36. Rxg7+ Nxg7 $17 (36... Kxg7 37. Qe1 $11)) 35... Rf8 {[%emt 0:01:11]} (35... Nh4 $14) 36. Qe2 $18 {[%emt 0:01:38]} (36. Rxg6 $2 fxg3 37. Rxg3 (37. hxg3 $2 {too greedy.} Ne3 $19) 37... Nxg3 38. hxg3 Be5 $19) 36... Qxe2 {[%emt 0:04:18]} 37. Rxe2 {[%emt 0:00:05]} f3 {[%emt 0:00:48]} 38. Re1 {[%emt 0:00:05]} Kf7 {[%emt 0:01:04]} 39. c5 {[%emt 0:01:20]} Rc8 {[%emt 0:00:25]} 40. g4 {[%emt 0:02:25]} (40. c6 $16) 40... Ne7 $14 {[%emt 0:00:40]} 41. h4 {[%emt 0:30:59]} Nc6 {[%emt 0:30:46]} 42. Re4 {[%emt 0:03:43]} g5 {[%emt 0:00:00]} 43. Nd5 {[%emt 0:00:00]} Ra8 {[%emt 0:00:00]} 44. Ndc7 {[%emt 0:00:00]} (44. Ndb4 $1 $11 Rc8 45. Nd5) 44... Rc8 {[%emt 0:00:00]} ({Black should play} 44... Ra7 $15 45. hxg5 hxg5) 45. hxg5 {[%emt 0:00:00]} hxg5 {[%emt 0:00:00]} 46. Re6 {[%emt 0:00:00]} Ne5 {[%emt 0:00:00]} 47. Rd6 {[%emt 0:00:00]} Nxd3 {[%emt 0:00:00]} 48. Rd7+ {[%emt 0:00:00]} Kg6 {[%emt 0:00:00]} 49. Ne6 {[%emt 0:00:00]} Be5 {[%emt 0:00:00]} 50. Nxd4 {[%emt 0:00:00]} Nxc5 {[%emt 0:00:00]} 51. Nxc5 {[%emt 0:00:00]} Rxc5 {[%emt 0:00:00]} 52. Nxf3 {[%emt 0:00:00]} Bf4 {[%emt 0:00:00]} 53. Kg2 {[%emt 0:00:00]} Ra5 {[%emt 0:00:00]} 54. Nd4 {[%emt 0:00:00]} Kf6 {[%emt 0:00:00]} 55. Rb7 {[%emt 0:00:00]} Rd5 {[%emt 0:00:00]} 56. Rb6+ {[%emt 0:00:00]} Rd6 {[%emt 0:00:00]} 57. Rxd6+ {[%emt 0:00:00]} Bxd6 {[%emt 0:00:00]} 58. Kf3 {[%emt 0:00:00]} Bc5 {[%emt 0:00:00]} 59. Ke4 {[%emt 0:00:00]} Ba7 {[%emt 0:00:00]} 60. Kd5 {[%emt 0:00:00]} Bb6 {[%emt 0:00:00]} 61. f3 {[%emt 0:00:00]} Bc7 {[%emt 0:00:00]} 62. Ne6 {[%emt 0:00:00]} Bh2 {[%emt 0:00:00]} 63. Nc5 {[%emt 0:00:00]} Bf4 {[%emt 0:00:00]} 64. Ne4+ {[%emt 0:00:00]} Kf7 {[%emt 0:00:00]} 65. Nd6+ {[%emt 0:00:00]} 1/2-1/2

[Event "Summer Prague Open-A 2024"]
[Site "Prague"]
[Date "2024.08.05"]
[Round "5.11"]
[White "Petr, Jakub"]
[Black "Svacina, Tobias"]
[Result "1/2-1/2"]
[Annotator "TA"]
[ECO "B30"]
[WhiteElo "2243"]
[BlackElo "2071"]
[PlyCount "88"]
[EventDate "2024.08.02"]
[EventType "swiss"]
[EventCountry "CZE"]
[SourceTitle "playchess.com"]
[Source "ChessBase"]
[SourceQuality "1"]
[TimeControl "40/5400+30:1800+30"]

{[%evp 9,88,21,42,51,86,115,96,23,26,21,22,12,18,0,0,-2,16,-12,0,0,0,0,0,-6,0,-20,-20,-16,-9,-10,0,0,0,0,0,0,0,0,0,0,0,0,0,0,0,0,0,0,0,0,0,0,0,-16,-12,-87,0,0,0,-34,-19,-25,-18,-20,-16,-18,-11,-12,-17,-51,0,0,0,0,0,0,0,0,0,0,0]} 1. e4 {[%emt 0:00:06]} c5 {[%emt 0:00:40]} 2. Nf3 {[%emt 0:00:07]} Nc6 {[%emt 0:00:39]} 3. Bb5 {[%emt 0:00:12]} d5 {[%emt 0:00:07]} 4. exd5 {[%emt 0:04:45]} Qxd5 {[%emt 0:00:15]} 5. d3 {[%emt 0:01:05]} Bg4 {[%emt 0:00:59]} 6. Nc3 {[%emt 0:00:36]} Bxf3 {[%emt 0:01:19]} 7. Nxd5 {[%emt 0:08:23]} Bxd1 {[%emt 0:00:11] [#]} 8. Kxd1 {[%emt 0:00:36] White is more active.} (8. Bxc6+ $1 $16 bxc6 9. Nc7+ Kd7 10. Nxa8) 8... Rc8 $1 $11 {[%emt 0:00:05]} 9. Bf4 {[%emt 0:01:05]} (9. a4 {simplifies} e6 10. Ne3 a6 11. Bxc6+ Rxc6 12. Bd2) 9... e6 {[%emt 0:00:48]} 10. Re1 {[%emt 0:01:10]} Kd7 {[%emt 0:03:05]} (10... Nge7 {simplifies} 11. Ne3 a6 12. Bxc6+ Nxc6 13. a4 Be7) 11. Nc3 {[%emt 0:02:20]} (11. Ne3 {simplifies} Bd6 12. Bxd6 Kxd6 13. Nc4+) 11... Nf6 {[%emt 0:01:08]} 12. Ke2 {[%emt 0:04:17]} Bd6 {[%emt 0:04:53]} (12... a6 {simplifies} 13. Bxc6+ Kxc6 14. a4 Be7) 13. Kf3 {[%emt 0:06:14]} (13. Bxc6+ {simplifies} Rxc6 14. Bxd6 Kxd6 15. b3) 13... a6 {[%emt 0:03:43]} 14. Bxc6+ {[%emt 0:00:17]} Kxc6 {[%emt 0:00:52]} 15. Bxd6 {[%emt 0:03:53]} Kxd6 {[%emt 0:00:04]} 16. Rad1 {[%emt 0:18:40]} Rhd8 {[%emt 0:27:27]} 17. d4 {[%emt 0:05:17]} cxd4 {[%emt 0:00:52]} 18. Rxd4+ {[%emt 0:00:06]} Kc5 {[%emt 0:00:07]} 19. Rdd1 {[%emt 0:00:11]} h6 {[%emt 0:01:32]} 20. Ne4+ {[%emt 0:03:23]} Nxe4 {[%emt 0:00:10]} 21. Kxe4 {[%emt 0:00:08]} Rd6 {[%emt 0:10:36]} 22. Rxd6 {[%emt 0:03:29]} Kxd6 {[%emt 0:00:05][%mdl 4096] Endgame. KR-KR} 23. Rd1+ {[%emt 0:00:06]} Ke7 {[%emt 0:00:03]} 24. c3 {[%emt 0:01:32]} f5+ {[%emt 0:00:50]} 25. Ke3 {[%emt 0:01:39]} e5 {[%emt 0:00:18]} 26. f4 {[%emt 0:17:42]} exf4+ {[%emt 0:03:17]} 27. Kxf4 {[%emt 0:00:22]} Ke6 {[%emt 0:00:06]} 28. Rd4 {[%emt 0:01:54]} g5+ {[%emt 0:01:24]} 29. Ke3 {[%emt 0:00:06]} Rc5 {[%emt 0:22:20]} 30. Rd8 {[%emt 0:01:49]} Re5+ {[%emt 0:00:34]} 31. Kd4 {[%emt 0:00:45] Hoping for Re8+.} Re4+ {[%emt 0:01:09]} 32. Kc5 {[%emt 0:03:38] [#]} (32. Kd3 $1 $11 {keeps the balance.} Rg4 33. g3) 32... Re5+ {[%emt 0:06:25]} (32... f4 $1 $17 {aiming for ...Kf5.} 33. h3 (33. Re8+ Kf5 $19) 33... Kf5 34. Rd5+ Kg6) 33. Kd4 {[%emt 0:00:07]} Re4+ {[%emt 0:00:06]} 34. Kd3 {[%emt 0:00:12] Re8+ is the strong threat.} Rg4 {[%emt 0:00:18]} 35. g3 {[%emt 0:01:13]} f4 {[%emt 0:00:32]} 36. gxf4 {[%emt 0:05:04]} Rxf4 {[%emt 0:00:20]} 37. Rb8 {[%emt 0:00:07]} Rf2 {[%emt 0:03:41]} 38. Rxb7 {[%emt 0:00:15]} Rxh2 {[%emt 0:00:02]} 39. Ke4 {[%emt 0:03:15]} Kd6 {[%emt 0:02:07]} (39... Rh4+ $15 40. Kf3 a5) 40. Rb6+ {[%emt 0:03:06] The position is equal.} Kc5 {[%emt 0:00:59]} 41. Rxa6 {[%emt 0:30:54]} Rxb2 {[%emt 0:30:39]} 42. Rxh6 {[%emt 0:00:06]} Rxa2 {[%emt 0:00:10]} 43. Rh5 {[%emt 0:00:07]} Kc4 {[%emt 0:00:08]} 44. Rxg5 {[%emt 0:00:04]} Kxc3 {[%emt 0:00:05] Weighted Error Value: White=0.11 (very precise) /Black=0.08 (flawless) .  Mistake:       	White=2     	Black=2      Inaccurate:     	White=3     	Black=1      OK:         	White=18    	Black=17     Strong:       	---       	Black=1} 1/2-1/2

[Event "Summer Prague Open-A 2024"]
[Site "Prague"]
[Date "2024.08.05"]
[Round "5.12"]
[White "Kroulik, Vaclav"]
[Black "Kuhn, Tobias"]
[Result "0-1"]
[Annotator "TA"]
[ECO "B34"]
[WhiteElo "2056"]
[BlackElo "2223"]
[PlyCount "76"]
[EventDate "2024.08.02"]
[EventType "swiss"]
[EventCountry "CZE"]
[SourceTitle "playchess.com"]
[Source "ChessBase"]
[SourceQuality "1"]
[TimeControl "40/5400+30:1800+30"]

{[%evp 24,76,0,0,41,35,37,16,45,0,6,0,7,14,7,-47,3,18,29,-101,-73,-88,-35,-35,-41,-137,-116,-185,-91,-84,-61,-64,-58,-163,-165,-314,-153,-150,-143,-268,-267,-260,-257,-331,-320,-302,-313,-743,-744,-741,-735,-2780,-2363,-5247,-5210]} 1. e4 {[%emt 0:00:04]} c5 {[%emt 0:00:13]} 2. Nf3 {[%emt 0:00:08]} Nc6 {[%emt 0:00:13]} 3. d4 {[%emt 0:00:10]} cxd4 {[%emt 0:00:06]} 4. Nxd4 {[%emt 0:00:07]} Nf6 {[%emt 0:00:10]} 5. Nc3 {[%emt 0:00:15]} e5 {[%emt 0:00:25]} 6. Ndb5 {[%emt 0:00:09]} d6 {[%emt 0:00:17]} 7. Nd5 {[%emt 0:00:11]} Nxd5 {[%emt 0:00:19]} 8. exd5 {[%emt 0:00:05]} Ne7 {[%emt 0:01:03]} 9. c4 {[%emt 0:01:10]} Ng6 {[%emt 0:00:07]} 10. Qa4 {[%emt 0:05:45]} Bd7 {[%emt 0:00:10]} 11. Qb4 {[%emt 0:00:20]} Bf5 {[%emt 0:01:27]} 12. Qa4 {[%emt 0:00:48]} Bd7 {[%emt 0:01:16]} 13. Qb4 {[%emt 0:00:21]} Qb8 {[%emt 0:00:20]} 14. h4 {[%emt 0:07:31] And now h5 would win.} h5 {[%emt 0:06:08]} 15. Bd3 {[%emt 0:08:22]} f5 {[%emt 0:14:45] The position is equal.} 16. Bg5 {[%emt 0:09:24]} a6 {[%emt 0:10:29]} 17. Nc3 {[%emt 0:00:24]} Be7 {[%emt 0:01:39]} 18. Bxe7 {[%emt 0:09:33]} Kxe7 {[%emt 0:01:22]} 19. Ne2 {[%emt 0:03:06]} (19. a4 $11) 19... a5 {[%emt 0:21:34]} ({Black should play} 19... b5 $15 20. Qc3 bxc4 21. Bxc4 a5) 20. Qd2 $11 {[%emt 0:01:22]} Kf7 {[%emt 0:01:51]} (20... e4 {seems wilder.} 21. Bc2 Ne5 22. f3 Nxc4 23. Qd4 Kf7) 21. b4 {[%emt 0:23:57]} (21. f3 $11) 21... Qd8 {[%emt 0:11:10]} (21... axb4 {is more complex.} 22. Rb1 e4 23. Bc2 Rxa2 24. Rxb4 Ne5) 22. bxa5 {[%emt 0:08:03] [#]} Qxa5 {[%emt 0:00:23]} ({Much weaker is} 22... Nxh4 $6 23. Rb1 Bc8 (23... Rxa5 24. Rxb7 e4 25. Bb1 $18) (23... Nxg2+ 24. Kf1 $16) 24. c5 $11) (22... e4 $1 $17 {[%cal Re4d3]} 23. Bc2 Qxa5 (23... Rxa5 24. Nd4 $15) (23... Nxh4 24. Rb1 $14)) 23. Qxa5 $15 {[%emt 0:00:24]} Rxa5 {[%emt 0:00:05]} 24. O-O {[%emt 0:02:09]} (24. Nc3 $15) 24... Ra3 {[%emt 0:08:37]} 25. Bc2 {[%emt 0:00:55] [#]} (25. Nc1 $17 {was worth a try.}) 25... Nxh4 {[%emt 0:00:53]} (25... Rc8 $1 $19 26. Rfc1 Rxc4 (26... Nxh4 27. Rab1 $17)) 26. Rfb1 $17 {[%emt 0:02:02]} Bc8 {[%emt 0:00:14] Black is more active.} 27. Rb6 {[%emt 0:00:37]} Rh6 {[%emt 0:00:17]} 28. Bb3 {[%emt 0:02:30]} ({Better is} 28. Rb3 $15 Ra5 29. Kh1) 28... Rg6 $36 {[%emt 0:07:21][%mdl 2048] White is under strong pressure.} 29. Ng3 {[%emt 0:01:04]} (29. g3 {was necessary.}) 29... Ra6 {[%emt 0:03:12]} (29... f4 $19 {and Black stays clearly on top.} 30. Ne4 Rxg2+ 31. Kf1 Kf8) 30. Rxa6 $17 {[%emt 0:00:26]} bxa6 {[%emt 0:00:05]} 31. Kf1 {[%emt 0:04:14] [#]} (31. c5 $17) 31... Nxg2 $1 $19 {[%emt 0:02:44][%mdl 512]} 32. Kxg2 {[%emt 0:00:49]} h4 {[%emt 0:00:06]} 33. Kf3 {[%emt 0:02:10]} hxg3 {[%emt 0:00:06]} 34. fxg3 {[%emt 0:00:01]} e4+ {[%emt 0:00:20]} 35. Kf4 $2 {[%emt 0:00:05]} (35. Kf2) 35... Rg4+ {[%emt 0:00:31] Black is clearly winning.} 36. Ke3 {[%emt 0:00:04]} Rxg3+ {[%emt 0:00:05]} 37. Kf2 {[%emt 0:00:15]} f4 {[%emt 0:00:15] ...e3+ is the strong threat.} 38. c5 {[%emt 0:00:25]} Bg4 {[%emt 0:00:52] Weighted Error Value: White=1.01/Black=0.28 (precise) .  Missed win:     	---       	Black=1      Mistake:       	White=8     	Black=3      Inaccurate:     	White=1     	Black=1      OK:         	White=6     	Black=7      Best:        	---       	Black=1} 0-1

[Event "Summer Prague Open-A 2024"]
[Site "Prague"]
[Date "2024.08.05"]
[Round "5.13"]
[White "Kudaibergen, Nurlykhan"]
[Black "Schmitz, Thorsten"]
[Result "1-0"]
[Annotator "NA RC"]
[ECO "B30"]
[WhiteElo "2041"]
[BlackElo "2218"]
[PlyCount "125"]
[EventDate "2024.08.02"]
[EventType "swiss"]
[EventCountry "CZE"]
[SourceTitle "playchess.com"]
[Source "ChessBase"]
[SourceQuality "1"]
[TimeControl "40/5400+30:1800+30"]

1. e4 {[%emt 0:00:06]} c5 {[%emt 0:00:11]} 2. Nf3 {[%emt 0:00:04]} Nc6 {[%emt 0:00:04]} 3. Bb5 {[%emt 0:00:04]} e5 {[%emt 0:00:19]} 4. O-O {[%emt 0:01:58]} Bd6 {[%emt 0:00:23]} 5. c3 {[%emt 0:01:56]} a6 {[%emt 0:00:20]} 6. Ba4 {[%emt 0:04:14]} b5 {[%emt 0:00:18]} 7. Bc2 {[%emt 0:00:03]} Qc7 {[%emt 0:01:01]} 8. a4 {[%emt 0:06:33]} b4 {[%emt 0:05:45]} 9. d3 {[%emt 0:02:48]} Nf6 {[%emt 0:02:56]} 10. Nbd2 {[%emt 0:01:11]} O-O {[%emt 0:02:01]} 11. Nc4 {[%emt 0:00:50]} Be7 {[%emt 0:00:38]} 12. Bg5 {[%emt 0:01:03]} d6 {[%emt 0:03:53]} 13. Ne3 {[%emt 0:10:52]} h6 {[%emt 0:12:25]} 14. Bh4 {[%emt 0:02:31]} bxc3 {[%emt 0:01:25]} 15. bxc3 {[%emt 0:00:09]} Be6 {[%emt 0:02:10]} 16. Rc1 {[%emt 0:03:12]} Rac8 {[%emt 0:07:52]} 17. d4 {[%emt 0:02:42]} cxd4 {[%emt 0:03:30]} 18. cxd4 {[%emt 0:00:05]} Nb4 {[%emt 0:00:57]} 19. d5 {[%emt 0:15:20]} Bd7 {[%emt 0:00:47]} 20. Bxf6 {[%emt 0:00:08]} Bxf6 {[%emt 0:00:34]} 21. Bb3 {[%emt 0:00:07]} Qxc1 {[%emt 0:14:25]} 22. Qxc1 {[%emt 0:00:04]} Rxc1 {[%emt 0:00:05]} 23. Rxc1 {[%emt 0:00:02]} Nd3 {[%emt 0:00:12]} 24. Ra1 {[%emt 0:19:31]} Nc5 {[%emt 0:04:19]} 25. Bc2 {[%emt 0:02:24]} Rb8 {[%emt 0:08:36]} 26. Ne1 {[%emt 0:03:06]} Rb4 {[%emt 0:10:21]} 27. Nd3 {[%emt 0:00:48]} Nxd3 {[%emt 0:01:46]} 28. Bxd3 {[%emt 0:00:02]} Bxa4 {[%emt 0:00:14]} 29. Bxa6 {[%emt 0:07:47]} Rxe4 {[%emt 0:00:59]} 30. Bc4 {[%emt 0:01:35]} Rxe3 {[%emt 0:04:36]} 31. fxe3 {[%emt 0:00:11]} Bc2 {[%emt 0:00:26]} 32. Ra6 {[%emt 0:00:13]} Be7 {[%emt 0:00:26]} 33. Ra7 {[%emt 0:00:19]} Bf8 {[%emt 0:00:15]} 34. Be2 {[%emt 0:00:36]} Bg6 {[%emt 0:02:59]} 35. h4 {[%emt 0:01:01]} f5 {[%emt 0:00:39]} 36. Kf2 {[%emt 0:01:12]} Bf7 {[%emt 0:00:36]} 37. e4 {[%emt 0:04:00]} fxe4 {[%emt 0:00:39]} 38. Bc4 {[%emt 0:00:12]} g5 {[%emt 0:00:34]} 39. hxg5 {[%emt 0:00:06]} hxg5 {[%emt 0:00:05]} 40. g4 {[%emt 0:00:04]} Kg7 {[%emt 0:01:42]} 41. Ke3 {[%emt 0:30:44]} Kf6 {[%emt 0:30:46]} 42. Bb3 {[%emt 0:00:47]} Be7 {[%emt 0:00:46]} 43. Ra5 {[%emt 0:00:44]} Bd8 {[%emt 0:03:28]} 44. Ra6 {[%emt 0:01:29]} Be7 {[%emt 0:00:08]} 45. Ra8 {[%emt 0:00:18]} Kg7 {[%emt 0:04:25]} 46. Kxe4 {[%emt 0:00:15]} Bg6+ {[%emt 0:00:38]} 47. Ke3 {[%emt 0:00:04]} Bf7 {[%emt 0:00:11]} 48. Ra5 {[%emt 0:08:46]} Kf6 {[%emt 0:00:00]} 49. Bc2 {[%emt 0:00:00]} Bd8 {[%emt 0:00:00]} 50. Ra6 {[%emt 0:00:00]} Be7 {[%emt 0:00:00]} 51. Be4 {[%emt 0:00:00]} Be8 {[%emt 0:00:00]} 52. Rb6 {[%emt 0:00:00]} Bd7 {[%emt 0:00:00]} 53. Bf3 {[%emt 0:00:00]} Be8 {[%emt 0:00:00]} 54. Kd3 {[%emt 0:00:00]} Bd7 {[%emt 0:00:00]} 55. Rb7 {[%emt 0:00:00]} Ba4 {[%emt 0:00:00]} 56. Be4 {[%emt 0:00:00]} Bd1 {[%emt 0:00:00]} 57. Bf5 {[%emt 0:00:00]} Bf3 {[%emt 0:00:00]} 58. Be6 {[%emt 0:00:00]} Bd1 {[%emt 0:00:00]} 59. Rb1 {[%emt 0:00:00]} Ba4 {[%emt 0:00:00]} 60. Rf1+ {[%emt 0:00:00]} Kg6 {[%emt 0:00:00]} 61. Rf7 {[%emt 0:00:00]} Bf6 {[%emt 0:00:00]} 62. Ra7 {[%emt 0:00:00]} e4+ {[%emt 0:01:03]} 63. Ke3 {[%emt 0:00:00]} 1-0